{"text_format":"3","workbook":"xlsx","n_sheets":3,"sheets":["Formulář","Příloha č.1","Příloha č.2"],"not_rendered":{"defined_names":1},"read":"whole","date_system":"1900"}

{"sheet":"Formulář","index":0,"n_rows":43,"n_cols":4,"rows_kept":43,"merged":[[0,0,0,3],[2,0,2,1],[2,2,2,3],[3,0,3,1],[3,2,3,3],[4,2,4,3],[12,2,12,3],[13,2,13,3],[14,1,14,3],[15,1,15,3],[17,2,17,3],[22,0,22,2],[32,0,32,1]]}
["Podklad pro zařazení dokončené investice"]
[]
["Název akce/ název majetku :"]
["Typ majetku (stavba, sam. mov. věc, soubor mov. věcí, SW …)"]
["Doba udržitelnosti projektu, je-li stanovena:"]
["a) nová investice:"]
["Uživatel:"]
[null,"Středisko"]
[null,"Odpovědná osoba"]
["Umístění:"]
[null,"kód AMI"]
[null,"u stavby dále:"]
[null,"parcelní č., kat. území"]
[null,"ulice, č.p. (je-li)"]
[null,"Zasahuje stavba do majetku cizího vlastníka? Jak je ošetřeno?"]
[]
["b) technické zhodnocení stávajícího majetku:"]
[null,"Inventární číslo (popř. AMI)"]
[]
[{"$nulls":3},"Částka Kč"]
[" Pořizovací cena celkem"]
[null," z toho neuplatněná DPH vstupující do ceny"]
["DPH celkem"]
[]
[null," Cizí zdroje","KP s posledním trojčíslím 010, 011, 020, 021, 023, 040, 041, 050 či 051 (v případě účelového daru)"]
[null,"Dotační titul:"]
[null,"Dotační titul:"]
[]
[null," Vlastní zdroje:","KP s posledním trojčíslím 031, 033, 034, 050 či 051 (v případě neúčelového daru)"]
[]
["Jednotlivé doklady, na zakladě kterých byl majetek pořízen, jsou rozepsány  v Příloze č.1. "]
[]
["Datum zařazení do užívání:                                   (kolaudace, převzetí uživatelem apod.)"]
[]
["jméno a podpis, datum:"]
[]
["osoba odpovědná za zařazení:"]
[]
[]
["provozní účtárna:"]
["(odsouhlasení údajů v účetnictví)"]
[]
["oddělení evidence majetku:"]

{"sheet":"Příloha č.1","index":1,"n_rows":17,"n_cols":9,"rows_kept":17,"merged":[[13,0,13,2]]}
[{"$nulls":8},"Příloha č. 1"]
["Jednotlivé doklady :"]
[null,"č. fa ","dodavatel","cena (bez DPH)","DPH celkem *","neupl. DPH* vstupující do ceny","vstupní cena celkem","vlastní zdroje","cizí zdroje"]
[1,{"$nulls":5},{"$f":"D4+F4","v":{"v":0,"d":"0.00"}}]
[2,{"$nulls":5},{"$f":"D5+F5","v":{"v":0,"d":"0.00"}}]
[3,{"$nulls":5},{"v":0,"d":"0.00"}]
[4,{"$nulls":5},{"v":0,"d":"0.00"}]
[5,{"$nulls":5},{"v":0,"d":"0.00"}]
[6,{"$nulls":5},{"v":0,"d":"0.00"}]
[7,{"$nulls":5},{"v":0,"d":"0.00"}]
[8,{"$nulls":5},{"v":0,"d":"0.00"}]
[9,{"$nulls":5},{"v":0,"d":"0.00"}]
[10,{"$nulls":5},{"v":0,"d":"0.00"}]
["celkem",null,null,{"$f":"SUM(D4:D13)","v":{"v":0,"d":"0.00"}},{"$f":"SUM(E4:E13)","v":{"v":0,"d":"0.00"}},{"v":0,"d":"0.00"},{"v":0,"d":"0.00"},{"$f":"SUM(H4:H13)","v":{"v":0,"d":"0.00"}},{"v":0,"d":"0.00"}]
[]
["Tabulku si rozšiřte dle konkrétní potřeby (např. v případě více zdrojů financování)"]
["* Částku DPH a neuplatněné DPH sdělí účetní, při velké investiční akci doplňujte a kontrolujte s účetní průběžně"]

{"sheet":"Příloha č.2","index":2,"n_rows":16,"n_cols":10,"rows_kept":16}
[{"$nulls":9},"Příloha č. 2"]
["Rozdělení na jednotlivé prvky   (jen je-li třeba)"]
["název prvku","ks","cena bez DPH","DPH celkem","neuplatněná DPH vstupující do ceny","vstupní cena celkem","vlastní zdroje","cizí zdroje","Umístění","Odp. osoba"]
[{"$nulls":5},{"$f":"C4+E4","v":{"v":0,"d":"0.00"}},null,{"$f":"F4-G4","v":{"v":0,"d":"0.00"}}]
[{"$nulls":5},{"$f":"C5+E5","v":{"v":0,"d":"0.00"}},null,{"$f":"F5-G5","v":{"v":0,"d":"0.00"}}]
[{"$nulls":5},{"v":0,"d":"0.00"},null,{"v":0,"d":"0.00"}]
[{"$nulls":5},{"v":0,"d":"0.00"},null,{"v":0,"d":"0.00"}]
[{"$nulls":5},{"v":0,"d":"0.00"},null,{"v":0,"d":"0.00"}]
[{"$nulls":5},{"v":0,"d":"0.00"},null,{"v":0,"d":"0.00"}]
[{"$nulls":5},{"v":0,"d":"0.00"},null,{"v":0,"d":"0.00"}]
[{"$nulls":5},{"v":0,"d":"0.00"},null,{"v":0,"d":"0.00"}]
[{"$nulls":5},{"v":0,"d":"0.00"},null,{"v":0,"d":"0.00"}]
[{"$nulls":5},{"v":0,"d":"0.00"},null,{"v":0,"d":"0.00"}]
["CELKEM",null,{"$f":"SUM(C4:C13)","v":{"v":0,"d":"0.00"}},{"$f":"SUM(D4:D13)","v":{"v":0,"d":"0.00"}},{"v":0,"d":"0.00"},{"v":0,"d":"0.00"},{"v":0,"d":"0.00"},{"v":0,"d":"0.00"}]
[]
["Tato příloha se použije zejména u movitých věcí, které se dělí na větší počet jednotlivých položek (soubory nábytku, AV techniky apod.)"]